[Event "*** Titled Tuesday Blitz"]
[Site "Chess.com"]
[Date "2020.05.05"]
[Round "1"]
[White "gmcorrales"]
[Black "TERMINATOR_PC"]
[Result "0-1"]
[WhiteElo "2798"]
[BlackElo "2438"]
[TimeControl "180+1"]
[EndTime "10:07:57 PDT"]
[Termination "TERMINATOR_PC won by resignation"]

1. e4 {[%clk 0:02:20.9]} 1... Nf6 {[%clk 0:02:58.8]} 2. e5 {[%clk 0:02:16]} 2...
Nd5 {[%clk 0:02:59.1]} 3. d4 {[%clk 0:02:15.2]} 3... d6 {[%clk 0:02:59.4]} 4. c4
{[%clk 0:02:06.5]} 4... Nb6 {[%clk 0:02:59.4]} 5. exd6 {[%clk 0:02:06.3]} 5...
cxd6 {[%clk 0:02:59.8]} 6. Nc3 {[%clk 0:02:06.4]} 6... g6 {[%clk 0:03:00.4]} 7.
Be3 {[%clk 0:02:05.9]} 7... Bg7 {[%clk 0:03:01]} 8. Rc1 {[%clk 0:02:06.5]} 8...
O-O {[%clk 0:03:01.5]} 9. b3 {[%clk 0:02:04.5]} 9... e5 {[%clk 0:03:01.8]} 10.
dxe5 {[%clk 0:02:03.4]} 10... dxe5 {[%clk 0:03:02.7]} 11. Qxd8 {[%clk
0:02:03.6]} 11... Rxd8 {[%clk 0:03:03.6]} 12. c5 {[%clk 0:02:03.5]} 12... N6d7
{[%clk 0:03:04.3]} 13. Nf3 {[%clk 0:02:00.6]} 13... Nc6 {[%clk 0:03:04.8]} 14.
Ng5 {[%clk 0:01:49.5]} 14... h6 {[%clk 0:02:47.3]} 15. Nge4 {[%clk 0:01:48.8]}
15... Nf8 {[%clk 0:02:47]} 16. Nd6 {[%clk 0:01:46.4]} 16... Rb8 {[%clk 0:02:03]}
17. Nxc8 {[%clk 0:01:37]} 17... Rbxc8 {[%clk 0:02:01.1]} 18. Nb5 {[%clk
0:01:36.9]} 18... Ne6 {[%clk 0:01:58.2]} 19. Nd6 {[%clk 0:01:36]} 19... Rc7
{[%clk 0:01:57.8]} 20. Bc4 {[%clk 0:01:35.7]} 20... Ncd4 {[%clk 0:01:27.4]} 21.
b4 {[%clk 0:01:25.9]} 21... b6 {[%clk 0:01:01.4]} 22. Bxd4 {[%clk 0:01:03.8]}
22... Nxd4 {[%clk 0:00:45.3]} 23. O-O {[%clk 0:00:44.6]} 23... bxc5 {[%clk
0:00:32.4]} 24. bxc5 {[%clk 0:00:45.5]} 24... Bf8 {[%clk 0:00:32.7]} 25. f4
{[%clk 0:00:17.4]} 25... exf4 {[%clk 0:00:17.6]} 26. Nxf7 {[%clk 0:00:13.9]}
26... Rxf7 {[%clk 0:00:15.1]} 27. c6 {[%clk 0:00:13.2]} 27... g5 {[%clk
0:00:05.7]} 28. Rfd1 {[%clk 0:00:12.1]} 28... Nxc6 {[%clk 0:00:03.6]} 29. Rxd8
{[%clk 0:00:09.6]} 29... Nxd8 {[%clk 0:00:04.5]} 30. Rd1 {[%clk 0:00:09.3]}
30... Nc6 {[%clk 0:00:03.6]} 31. Rd7 {[%clk 0:00:08.8]} 31... Ne5 {[%clk
0:00:03.1]} 32. Bxf7+ {[%clk 0:00:08.6]} 32... Nxf7 {[%clk 0:00:03.6]} 33. Kf1
{[%clk 0:00:08.5]} 33... Bc5 {[%clk 0:00:03.4]} 34. Ke2 {[%clk 0:00:08.7]} 34...
Bb6 {[%clk 0:00:03.5]} 35. Rb7 {[%clk 0:00:07.4]} 35... Ne5 {[%clk 0:00:03.1]}
36. g3 {[%clk 0:00:05.7]} 36... f3+ {[%clk 0:00:02.9]} 37. Kf1 {[%clk
0:00:05.5]} 37... f2 {[%clk 0:00:03.8]} 38. a4 {[%clk 0:00:04.3]} 38... Ng4
{[%clk 0:00:03.8]} 39. Rb8+ {[%clk 0:00:01.7]} 39... Kg7 {[%clk 0:00:03.7]} 40.
Kg2 {[%clk 0:00:02.4]} 40... Kg6 {[%clk 0:00:02.6]} 41. Rb7 {[%clk 0:00:03.3]}
41... Nxh2 {[%clk 0:00:02.8]} 42. Rxb6+ {[%clk 0:00:01.9]} 42... axb6 {[%clk
0:00:03.5]} 43. Kxf2 {[%clk 0:00:02.4]} 43... Ng4+ {[%clk 0:00:04]} 44. Kf3
{[%clk 0:00:02.7]} 44... h5 {[%clk 0:00:04]} 45. Ke4 {[%clk 0:00:03.6]} 45...
Nf2+ {[%clk 0:00:04]} 46. Ke3 {[%clk 0:00:03.6]} 46... Ng4+ {[%clk 0:00:04.5]}
47. Kd4 {[%clk 0:00:03.8]} 47... Kf6 {[%clk 0:00:05.4]} 48. Kc4 {[%clk
0:00:03.2]} 48... h4 {[%clk 0:00:06]} 49. Kb5 {[%clk 0:00:04.1]} 49... hxg3
{[%clk 0:00:06.3]} 50. a5 {[%clk 0:00:04.9]} 50... g2 {[%clk 0:00:07.2]} 51. a6
{[%clk 0:00:05.8]} 51... g1=Q {[%clk 0:00:07.4]} 52. a7 {[%clk 0:00:06.6]} 52...
Qg2 {[%clk 0:00:08]} 53. Kxb6 {[%clk 0:00:06.4]} 53... Qa8 {[%clk 0:00:08.9]}
54. Kc7 {[%clk 0:00:07.3]} 54... Ne5 {[%clk 0:00:08.3]} 0-1

[Event "*** Titled Tuesday Blitz"]
[Site "Chess.com"]
[Date "2020.05.05"]
[Round "1"]
[White "XDPS"]
[Black "PotapovaM"]
[Result "1-0"]
[WhiteElo "2705"]
[BlackElo "2366"]
[TimeControl "180+1"]
[EndTime "10:07:58 PDT"]
[Termination "XDPS won by resignation"]

1. e4 {[%clk 0:03:00.4]} 1... c5 {[%clk 0:02:57.2]} 2. Nf3 {[%clk 0:03:00.5]}
2... d6 {[%clk 0:02:57.8]} 3. d4 {[%clk 0:03:00.8]} 3... cxd4 {[%clk 0:02:58.7]}
4. Nxd4 {[%clk 0:03:01.4]} 4... Nf6 {[%clk 0:02:59.4]} 5. Nc3 {[%clk 0:03:01.7]}
5... a6 {[%clk 0:03:00]} 6. Be2 {[%clk 0:03:01.8]} 6... e5 {[%clk 0:03:00]} 7.
Nf3 {[%clk 0:03:01.8]} 7... Qc7 {[%clk 0:02:52.9]} 8. Bg5 {[%clk 0:02:52.7]}
8... Nbd7 {[%clk 0:02:38]} 9. a4 {[%clk 0:02:49.3]} 9... b6 {[%clk 0:02:37.8]}
10. O-O {[%clk 0:02:35.2]} 10... Bb7 {[%clk 0:02:37.7]} 11. Nd2 {[%clk
0:02:35.5]} 11... Be7 {[%clk 0:02:36.4]} 12. f3 {[%clk 0:02:34.2]} 12... O-O
{[%clk 0:02:32.6]} 13. Nc4 {[%clk 0:02:33.8]} 13... h6 {[%clk 0:02:20.1]} 14.
Bh4 {[%clk 0:02:29.4]} 14... Rfe8 {[%clk 0:02:08.2]} 15. Bf2 {[%clk 0:02:05.1]}
15... Rac8 {[%clk 0:01:43.6]} 16. Ne3 {[%clk 0:02:03.8]} 16... Bf8 {[%clk
0:01:31.6]} 17. Bc4 {[%clk 0:01:57.9]} 17... Qb8 {[%clk 0:01:19.5]} 18. Qe2
{[%clk 0:01:54]} 18... Nc5 {[%clk 0:01:17.9]} 19. Rfd1 {[%clk 0:01:53.1]} 19...
Ne6 {[%clk 0:01:15.1]} 20. Bxa6 {[%clk 0:01:44.7]} 20... Nf4 {[%clk 0:01:11.4]}
21. Qf1 {[%clk 0:01:43.2]} 21... Qa7 {[%clk 0:00:54.7]} 22. Bc4 {[%clk
0:01:34.7]} 22... g6 {[%clk 0:00:47.3]} 23. Nb5 {[%clk 0:01:29.1]} 23... Qb8
{[%clk 0:00:45.7]} 24. Bb3 {[%clk 0:01:24.8]} 24... Ne6 {[%clk 0:00:44.9]} 25.
c3 {[%clk 0:01:20.5]} 25... Kg7 {[%clk 0:00:43.2]} 26. Kh1 {[%clk 0:01:18.5]}
26... Nc5 {[%clk 0:00:43.1]} 27. Bc2 {[%clk 0:01:18.6]} 27... Ne6 {[%clk
0:00:43]} 28. Bh4 {[%clk 0:01:17.5]} 28... Nh5 {[%clk 0:00:41.2]} 29. Bb3 {[%clk
0:01:14.7]} 29... Nc5 {[%clk 0:00:40.7]} 30. Bd5 {[%clk 0:01:14]} 30... Ba6
{[%clk 0:00:40.3]} 31. Bc4 {[%clk 0:01:05.6]} 31... Bb7 {[%clk 0:00:38.3]} 32.
Nd5 {[%clk 0:01:05.3]} 32... Bc6 {[%clk 0:00:36.7]} 33. Bf2 {[%clk 0:00:55.4]}
33... Qb7 {[%clk 0:00:27.9]} 34. b4 {[%clk 0:00:49.1]} 34... Nd7 {[%clk
0:00:27.7]} 35. Bb3 {[%clk 0:00:46.1]} 35... Red8 {[%clk 0:00:24.6]} 36. c4
{[%clk 0:00:45]} 36... Ndf6 {[%clk 0:00:23.4]} 37. Nxb6 {[%clk 0:00:43.5]} 37...
Rb8 {[%clk 0:00:20.4]} 38. Nd5 {[%clk 0:00:43.7]} 38... Nxd5 {[%clk 0:00:18.7]}
39. exd5 {[%clk 0:00:36.8]} 39... Be8 {[%clk 0:00:18.5]} 40. Bc2 {[%clk
0:00:20.6]} 40... Qc8 {[%clk 0:00:16.3]} 41. Rdb1 {[%clk 0:00:20.2]} 41... Rb7
{[%clk 0:00:16.3]} 42. Bd3 {[%clk 0:00:20.5]} 42... f5 {[%clk 0:00:15.5]} 43. a5
{[%clk 0:00:20.7]} 43... Nf4 {[%clk 0:00:14.4]} 44. a6 {[%clk 0:00:21.1]} 44...
Rb8 {[%clk 0:00:14.5]} 45. Na7 {[%clk 0:00:21.4]} 45... Qd7 {[%clk 0:00:14.6]}
46. b5 {[%clk 0:00:21.4]} 46... Ra8 {[%clk 0:00:13.6]} 47. Nc6 {[%clk
0:00:20.9]} 47... Rdc8 {[%clk 0:00:10.4]} 48. b6 {[%clk 0:00:21.2]} 48... Rxc6
{[%clk 0:00:07.3]} 49. dxc6 {[%clk 0:00:22.1]} 49... Qxc6 {[%clk 0:00:08.2]} 50.
b7 {[%clk 0:00:22.6]} 50... Rd8 {[%clk 0:00:07.8]} 51. a7 {[%clk 0:00:22.8]}
51... e4 {[%clk 0:00:08.3]} 52. fxe4 {[%clk 0:00:22.8]} 52... fxe4 {[%clk
0:00:09.2]} 53. Bd4+ {[%clk 0:00:23.2]} 53... Kh7 {[%clk 0:00:07.7]} 54. Qxf4
{[%clk 0:00:23.4]} 54... exd3 {[%clk 0:00:07.2]} 55. b8=Q {[%clk 0:00:23.9]}
55... Be7 {[%clk 0:00:05.2]} 56. Qxd8 {[%clk 0:00:23.3]} 56... Bxd8 {[%clk
0:00:05.1]} 57. Qf8 {[%clk 0:00:23.9]} 1-0

[Event "*** Titled Tuesday Blitz"]
[Site "Chess.com"]
[Date "2020.05.05"]
[Round "1"]
[White "WanderingPuppet"]
[Black "LiamVrolijk"]
[Result "0-1"]
[WhiteElo "2390"]
[BlackElo "2743"]
[TimeControl "180+1"]
[EndTime "10:08:03 PDT"]
[Termination "LiamVrolijk won on time"]

1. e4 {[%clk 0:03:00.9]} 1... e5 {[%clk 0:02:58.7]} 2. Nf3 {[%clk 0:03:00.9]}
2... Nc6 {[%clk 0:02:59.1]} 3. Bb5 {[%clk 0:03:01.3]} 3... a6 {[%clk 0:02:58.8]}
4. Ba4 {[%clk 0:03:01.5]} 4... Nf6 {[%clk 0:02:59.2]} 5. O-O {[%clk 0:03:01.4]}
5... b5 {[%clk 0:02:59.4]} 6. Bb3 {[%clk 0:03:00.6]} 6... Bc5 {[%clk 0:02:59.9]}
7. c3 {[%clk 0:02:59.8]} 7... d6 {[%clk 0:02:59.7]} 8. d4 {[%clk 0:02:59.7]}
8... Bb6 {[%clk 0:02:59.7]} 9. Bg5 {[%clk 0:02:59]} 9... h6 {[%clk 0:02:59.5]}
10. Bh4 {[%clk 0:02:57]} 10... O-O {[%clk 0:02:52.1]} 11. Qc1 {[%clk 0:02:54.1]}
11... exd4 {[%clk 0:02:29.2]} 12. cxd4 {[%clk 0:02:52.9]} 12... Nxd4 {[%clk
0:02:27.3]} 13. Nxd4 {[%clk 0:02:51.7]} 13... Bxd4 {[%clk 0:02:28.2]} 14. Nc3
{[%clk 0:02:50.9]} 14... g5 {[%clk 0:02:19.6]} 15. Bg3 {[%clk 0:02:50.3]} 15...
Be6 {[%clk 0:02:13]} 16. Kh1 {[%clk 0:02:32]} 16... Bxc3 {[%clk 0:02:00.6]} 17.
Qxc3 {[%clk 0:02:19.1]} 17... Nxe4 {[%clk 0:02:00.4]} 18. Qe3 {[%clk 0:02:17.3]}
18... Bxb3 {[%clk 0:01:56.3]} 19. Qxe4 {[%clk 0:02:07.1]} 19... f5 {[%clk
0:01:48.5]} 20. Qb1 {[%clk 0:01:15.8]} 20... Bc4 {[%clk 0:01:47.9]} 21. Re1
{[%clk 0:01:11.6]} 21... Qf6 {[%clk 0:01:38.7]} 22. b3 {[%clk 0:01:02]} 22...
Bd5 {[%clk 0:01:34.1]} 23. f3 {[%clk 0:01:01.1]} 23... Rae8 {[%clk 0:01:32.2]}
24. Qd3 {[%clk 0:00:58.8]} 24... c6 {[%clk 0:01:29]} 25. Bf2 {[%clk 0:00:49.9]}
25... Qf7 {[%clk 0:01:14.7]} 26. Bd4 {[%clk 0:00:44]} 26... Re6 {[%clk
0:01:07.2]} 27. Rxe6 {[%clk 0:00:39.7]} 27... Qxe6 {[%clk 0:01:08.1]} 28. Bb2
{[%clk 0:00:33.2]} 28... Re8 {[%clk 0:00:55.3]} 29. h3 {[%clk 0:00:32.9]} 29...
Kh7 {[%clk 0:00:49.2]} 30. Qd4 {[%clk 0:00:28.6]} 30... Qf7 {[%clk 0:00:48.4]}
31. Kh2 {[%clk 0:00:19.2]} 31... Kg6 {[%clk 0:00:47.6]} 32. Rd1 {[%clk
0:00:18.4]} 32... Qe7 {[%clk 0:00:47.8]} 33. Kh1 {[%clk 0:00:16.5]} 33... Qe5
{[%clk 0:00:44.4]} 34. Qd2 {[%clk 0:00:15]} 34... Qe3 {[%clk 0:00:44.3]} 35. Qc2
{[%clk 0:00:05.9]} 35... Qe2 {[%clk 0:00:38.3]} 36. Rd2 {[%clk 0:00:04]} 36...
Qe1+ {[%clk 0:00:37]} 37. Kh2 {[%clk 0:00:04.4]} 37... h5 {[%clk 0:00:35.3]} 38.
Qc3 {[%clk 0:00:04.4]} 38... Qe5+ {[%clk 0:00:34]} 39. Qxe5 {[%clk 0:00:04.3]}
39... dxe5 {[%clk 0:00:34.9]} 40. Re2 {[%clk 0:00:03.8]} 40... e4 {[%clk
0:00:33.8]} 41. fxe4 {[%clk 0:00:04.7]} 41... Bxe4 {[%clk 0:00:29.1]} 42. Kg1
{[%clk 0:00:03.7]} 42... Rd8 {[%clk 0:00:28.5]} 43. Kf2 {[%clk 0:00:03.5]} 43...
Rd3 {[%clk 0:00:28.1]} 44. Ba3 {[%clk 0:00:02]} 44... Rd1 {[%clk 0:00:23.7]} 45.
Be7 {[%clk 0:00:02.9]} 45... h4 {[%clk 0:00:23.4]} 46. Bc5 {[%clk 0:00:02]}
46... Kf6 {[%clk 0:00:21.9]} 47. Bb6 {[%clk 0:00:02.3]} 47... Bd3 {[%clk
0:00:20.7]} 48. Rb2 {[%clk 0:00:02.3]} 48... Be4 {[%clk 0:00:20]} 49. Be3 {[%clk
0:00:02.2]} 49... f4 {[%clk 0:00:19.7]} 50. Bd2 {[%clk 0:00:02.1]} 50... Kf5
{[%clk 0:00:19.8]} 51. Bc3 {[%clk 0:00:01.8]} 51... Bd5 {[%clk 0:00:19.9]} 52.
Bb4 {[%clk 0:00:02]} 52... Rd3 {[%clk 0:00:20.2]} 53. Bc5 {[%clk 0:00:01.9]}
53... f3 {[%clk 0:00:20.5]} 54. gxf3 {[%clk 0:00:02.5]} 54... Rxf3+ {[%clk
0:00:21.4]} 55. Kg1 {[%clk 0:00:02.6]} 55... Rxh3 {[%clk 0:00:21.6]} 56. Rf2+
{[%clk 0:00:02.7]} 56... Kg4 {[%clk 0:00:22.2]} 57. Rd2 {[%clk 0:00:03.3]} 57...
Rh1+ {[%clk 0:00:22.5]} 58. Kf2 {[%clk 0:00:03.2]} 58... Rh2+ {[%clk 0:00:23.1]}
0-1

[Event "*** Titled Tuesday Blitz"]
[Site "Chess.com"]
[Date "2020.05.05"]
[Round "1"]
[White "SmirnovTimofey2000"]
[Black "politeplayer"]
[Result "1/2-1/2"]
[WhiteElo "2531"]
[BlackElo "2204"]
[TimeControl "180+1"]
[EndTime "10:08:03 PDT"]
[Termination "Game drawn by repetition"]

1. e4 {[%clk 0:02:48.1]} 1... e6 {[%clk 0:02:59.9]} 2. d4 {[%clk 0:02:47.6]}
2... d5 {[%clk 0:03:00.2]} 3. Nc3 {[%clk 0:02:48.2]} 3... dxe4 {[%clk
0:03:00.2]} 4. Nxe4 {[%clk 0:02:48.4]} 4... Nd7 {[%clk 0:03:00.8]} 5. Nf3 {[%clk
0:02:47.3]} 5... Ngf6 {[%clk 0:03:00.5]} 6. Bd3 {[%clk 0:02:47.8]} 6... Nxe4
{[%clk 0:02:59.3]} 7. Bxe4 {[%clk 0:02:47.9]} 7... Nf6 {[%clk 0:02:59.8]} 8. Bd3
{[%clk 0:02:48.3]} 8... c5 {[%clk 0:03:00.4]} 9. O-O {[%clk 0:02:47.1]} 9...
cxd4 {[%clk 0:02:59.5]} 10. Nxd4 {[%clk 0:02:48]} 10... Bc5 {[%clk 0:02:58.4]}
11. Nb3 {[%clk 0:02:47.6]} 11... Bb6 {[%clk 0:02:57.9]} 12. a4 {[%clk
0:02:46.3]} 12... O-O {[%clk 0:02:56]} 13. a5 {[%clk 0:02:46]} 13... Bc7 {[%clk
0:02:54.3]} 14. Qf3 {[%clk 0:02:46.4]} 14... Qd5 {[%clk 0:02:18]} 15. Qxd5
{[%clk 0:02:41.4]} 15... Nxd5 {[%clk 0:02:15.5]} 16. Be4 {[%clk 0:02:41.8]}
16... Nb4 {[%clk 0:02:06.2]} 17. Bd2 {[%clk 0:02:32.6]} 17... Bd6 {[%clk
0:01:55.5]} 18. a6 {[%clk 0:01:57.5]} 18... Rb8 {[%clk 0:01:42.6]} 19. axb7
{[%clk 0:01:56]} 19... Bxb7 {[%clk 0:01:42.2]} 20. Bxb7 {[%clk 0:01:48.9]} 20...
Rxb7 {[%clk 0:01:41.7]} 21. Bxb4 {[%clk 0:01:46.9]} 21... Bxb4 {[%clk
0:01:38.3]} 22. Rfd1 {[%clk 0:01:45.3]} 22... Rc8 {[%clk 0:01:34.6]} 23. Ra4
{[%clk 0:01:05.7]} 23... g6 {[%clk 0:01:26]} 24. Na1 {[%clk 0:00:58]} 24... Be7
{[%clk 0:01:20.8]} 25. Ra2 {[%clk 0:00:57]} 25... Bf6 {[%clk 0:01:19]} 26. c3
{[%clk 0:00:56.5]} 26... Rcb8 {[%clk 0:01:16.4]} 27. g3 {[%clk 0:00:40.4]} 27...
Rxb2 {[%clk 0:01:13]} 28. Rxa7 {[%clk 0:00:40.1]} 28... Bxc3 {[%clk 0:01:08.9]}
29. Kg2 {[%clk 0:00:34.7]} 29... R2b7 {[%clk 0:00:56.2]} 30. Rxb7 {[%clk
0:00:28.4]} 30... Rxb7 {[%clk 0:00:55.6]} 31. Nc2 {[%clk 0:00:29.3]} 31... Rb2
{[%clk 0:00:50.4]} 32. Ne3 {[%clk 0:00:21.5]} 32... e5 {[%clk 0:00:47.8]} 33.
Nc4 {[%clk 0:00:11.8]} 33... Rc2 {[%clk 0:00:43.5]} 34. Kf3 {[%clk 0:00:05.9]}
34... Bd4 {[%clk 0:00:33.2]} 35. Ne3 {[%clk 0:00:05.8]} 35... f6 {[%clk
0:00:27.7]} 36. g4 {[%clk 0:00:05.6]} 36... Kg7 {[%clk 0:00:21.6]} 37. Rb1
{[%clk 0:00:05.5]} 37... Bxe3 {[%clk 0:00:11.6]} 38. Rb7+ {[%clk 0:00:05.2]}
38... Kh6 {[%clk 0:00:09.4]} 39. Kxe3 {[%clk 0:00:06.1]} 39... Rc3+ {[%clk
0:00:08.2]} 40. Ke4 {[%clk 0:00:03.6]} 40... Rh3 {[%clk 0:00:07.4]} 41. f4
{[%clk 0:00:02]} 41... exf4 {[%clk 0:00:03.8]} 42. Kxf4 {[%clk 0:00:02.9]} 42...
Rxh2 {[%clk 0:00:04.2]} 43. Rf7 {[%clk 0:00:03.5]} 43... Rf2+ {[%clk 0:00:03.8]}
44. Kg3 {[%clk 0:00:03.7]} 44... Rf1 {[%clk 0:00:03.6]} 45. Kg2 {[%clk
0:00:03.7]} 45... Rf4 {[%clk 0:00:02.6]} 46. Kg3 {[%clk 0:00:04.6]} 46... Rf1
{[%clk 0:00:02.3]} 47. Kg2 {[%clk 0:00:03.6]} 47... Rf4 {[%clk 0:00:02.7]} 48.
Kg3 {[%clk 0:00:04.5]} 48... Rf1 {[%clk 0:00:02.7]} 1/2-1/2

[Event "*** Titled Tuesday Blitz"]
[Site "Chess.com"]
[Date "2020.05.05"]
[Round "1"]
[White "ega2006"]
[Black "Kezin_Roman"]
[Result "0-1"]
[WhiteElo "2415"]
[BlackElo "2801"]
[TimeControl "180+1"]
[EndTime "10:08:05 PDT"]
[Termination "Kezin_Roman won by checkmate"]

1. e4 {[%clk 0:02:58.1]} 1... c5 {[%clk 0:02:59.7]} 2. Nf3 {[%clk 0:02:57.4]}
2... e6 {[%clk 0:02:59.7]} 3. Nc3 {[%clk 0:02:56.2]} 3... Nc6 {[%clk 0:02:59.3]}
4. g3 {[%clk 0:02:55.6]} 4... a6 {[%clk 0:02:49.8]} 5. Bg2 {[%clk 0:02:55.3]}
5... Nf6 {[%clk 0:02:50.3]} 6. O-O {[%clk 0:02:54.6]} 6... Qc7 {[%clk 0:02:50]}
7. d4 {[%clk 0:02:54.6]} 7... cxd4 {[%clk 0:02:50.9]} 8. Nxd4 {[%clk 0:02:55.1]}
8... Nxd4 {[%clk 0:02:50.1]} 9. Qxd4 {[%clk 0:02:54.6]} 9... Bc5 {[%clk
0:02:50.6]} 10. Bf4 {[%clk 0:02:55.1]} 10... d6 {[%clk 0:02:50.8]} 11. Qd2
{[%clk 0:02:55]} 11... h6 {[%clk 0:02:51]} 12. Rad1 {[%clk 0:02:50.6]} 12... e5
{[%clk 0:02:50.8]} 13. Be3 {[%clk 0:02:51]} 13... Be6 {[%clk 0:02:51.1]} 14.
Bxc5 {[%clk 0:02:49.4]} 14... dxc5 {[%clk 0:02:50.8]} 15. Nd5 {[%clk 0:02:49.6]}
15... Bxd5 {[%clk 0:02:50.9]} 16. exd5 {[%clk 0:02:50.5]} 16... Qd6 {[%clk
0:02:51.4]} 17. f4 {[%clk 0:02:34.6]} 17... O-O {[%clk 0:02:51]} 18. fxe5 {[%clk
0:02:34.6]} 18... Qxe5 {[%clk 0:02:51.9]} 19. d6 {[%clk 0:02:34.8]} 19... Qxb2
{[%clk 0:02:49.1]} 20. Rb1 {[%clk 0:02:29.1]} 20... Qxa2 {[%clk 0:02:39.4]} 21.
Rxb7 {[%clk 0:02:27.5]} 21... Rad8 {[%clk 0:02:37.4]} 22. Re1 {[%clk 0:02:11.9]}
22... Qc4 {[%clk 0:02:25.4]} 23. d7 {[%clk 0:01:56.2]} 23... Qa4 {[%clk
0:02:18.2]} 24. Re7 {[%clk 0:01:49.4]} 24... a5 {[%clk 0:02:03.3]} 25. Rc7
{[%clk 0:01:31.6]} 25... Qb5 {[%clk 0:01:59.5]} 26. Rb7 {[%clk 0:01:05.4]} 26...
Qc4 {[%clk 0:01:54.8]} 27. Qd3 {[%clk 0:01:02.1]} 27... Qa4 {[%clk 0:01:25.3]}
28. Ra7 {[%clk 0:00:56.2]} 28... c4 {[%clk 0:01:22.2]} 29. Qd4 {[%clk
0:00:43.8]} 29... Qb4 {[%clk 0:01:03.1]} 30. Re5 {[%clk 0:00:26.8]} 30... Qb1+
{[%clk 0:00:46.4]} 31. Bf1 {[%clk 0:00:24.7]} 31... Qxc2 {[%clk 0:00:38.1]} 32.
Rexa5 {[%clk 0:00:24.8]} 32... c3 {[%clk 0:00:35.8]} 33. Rc5 {[%clk 0:00:24.7]}
33... Qd2 {[%clk 0:00:26.6]} 34. Qxc3 {[%clk 0:00:23.6]} 34... Rxd7 {[%clk
0:00:23.6]} 35. Qxd2 {[%clk 0:00:21.9]} 35... Rxd2 {[%clk 0:00:24.5]} 36. Rcc7
{[%clk 0:00:22.3]} 36... Rd1 {[%clk 0:00:19.1]} 37. Kg2 {[%clk 0:00:21.3]} 37...
Nd5 {[%clk 0:00:18.9]} 38. Rd7 {[%clk 0:00:16.4]} 38... Ne3+ {[%clk 0:00:18.8]}
39. Kf2 {[%clk 0:00:16.8]} 39... Rxf1+ {[%clk 0:00:18]} 40. Kxe3 {[%clk
0:00:16.9]} 40... Rf6 {[%clk 0:00:17.9]} 41. h4 {[%clk 0:00:17.1]} 41... h5
{[%clk 0:00:16.4]} 42. Re7 {[%clk 0:00:16.7]} 42... g6 {[%clk 0:00:16.6]} 43.
Red7 {[%clk 0:00:16.6]} 43... Kg7 {[%clk 0:00:17]} 44. Re7 {[%clk 0:00:16.9]}
44... Rb8 {[%clk 0:00:16.4]} 45. Red7 {[%clk 0:00:17.1]} 45... Rb3+ {[%clk
0:00:15.7]} 46. Ke4 {[%clk 0:00:18]} 46... Rxg3 {[%clk 0:00:16]} 47. Ke5 {[%clk
0:00:14.1]} 47... Re3+ {[%clk 0:00:15.2]} 48. Kd4 {[%clk 0:00:13.7]} 48... Rh3
{[%clk 0:00:14]} 49. Ke5 {[%clk 0:00:10.4]} 49... Rxh4 {[%clk 0:00:13.6]} 50.
Rd8 {[%clk 0:00:11]} 50... Rf5+ {[%clk 0:00:13.3]} 51. Kd6 {[%clk 0:00:10.6]}
51... Rd4+ {[%clk 0:00:13.4]} 52. Ke7 {[%clk 0:00:11.2]} 52... Re5# {[%clk
0:00:11.7]} 0-1

[Event "*** Titled Tuesday Blitz"]
[Site "Chess.com"]
[Date "2020.05.05"]
[Round "1"]
[White "Xeniya2005"]
[Black "kungmongmanh"]
[Result "1/2-1/2"]
[WhiteElo "2277"]
[BlackElo "2591"]
[TimeControl "180+1"]
[EndTime "10:08:06 PDT"]
[Termination "Game drawn - insufficient material"]

1. e4 {[%clk 0:02:59.6]} 1... e6 {[%clk 0:03:00.2]} 2. d4 {[%clk 0:02:59.4]}
2... d5 {[%clk 0:03:00.3]} 3. Nd2 {[%clk 0:02:59.3]} 3... Nf6 {[%clk 0:03:00]}
4. e5 {[%clk 0:02:58.6]} 4... Nfd7 {[%clk 0:02:59.8]} 5. Bd3 {[%clk 0:02:58.7]}
5... c5 {[%clk 0:02:56.8]} 6. c3 {[%clk 0:02:58.1]} 6... b6 {[%clk 0:02:57]} 7.
Ne2 {[%clk 0:02:44.3]} 7... Ba6 {[%clk 0:02:55.4]} 8. Bxa6 {[%clk 0:02:44]} 8...
Nxa6 {[%clk 0:02:56]} 9. O-O {[%clk 0:02:42.2]} 9... Be7 {[%clk 0:02:56.2]} 10.
f4 {[%clk 0:02:40.5]} 10... O-O {[%clk 0:02:55.3]} 11. Nf3 {[%clk 0:02:38.1]}
11... Nc7 {[%clk 0:02:53.9]} 12. a4 {[%clk 0:02:33.6]} 12... Rc8 {[%clk
0:02:48.1]} 13. Ng3 {[%clk 0:02:18.9]} 13... f5 {[%clk 0:02:40.2]} 14. exf6
{[%clk 0:02:11.1]} 14... Bxf6 {[%clk 0:02:30.8]} 15. f5 {[%clk 0:01:59.4]} 15...
cxd4 {[%clk 0:02:24.8]} 16. cxd4 {[%clk 0:01:45.8]} 16... e5 {[%clk 0:02:10.4]}
17. dxe5 {[%clk 0:01:38.6]} 17... Nxe5 {[%clk 0:02:09.6]} 18. Nxe5 {[%clk
0:01:15.4]} 18... Bxe5 {[%clk 0:02:09]} 19. Rb1 {[%clk 0:01:10.8]} 19... Qh4
{[%clk 0:01:59.6]} 20. Qd3 {[%clk 0:00:59.2]} 20... Qxa4 {[%clk 0:01:49.1]} 21.
Bg5 {[%clk 0:00:52.7]} 21... Qd4+ {[%clk 0:01:45.2]} 22. Qxd4 {[%clk 0:00:51.9]}
22... Bxd4+ {[%clk 0:01:45.4]} 23. Kh1 {[%clk 0:00:52.2]} 23... Bf6 {[%clk
0:01:44]} 24. Bxf6 {[%clk 0:00:51.3]} 24... Rxf6 {[%clk 0:01:41.7]} 25. Rbc1
{[%clk 0:00:46.4]} 25... Rf7 {[%clk 0:01:40.3]} 26. Rfd1 {[%clk 0:00:38.2]}
26... Rd8 {[%clk 0:01:39.3]} 27. Kg1 {[%clk 0:00:37.2]} 27... d4 {[%clk
0:01:28.4]} 28. Rd3 {[%clk 0:00:35]} 28... Na6 {[%clk 0:01:25.6]} 29. Rcd1
{[%clk 0:00:33.9]} 29... Rfd7 {[%clk 0:01:21.4]} 30. Ne2 {[%clk 0:00:33.3]}
30... Nc5 {[%clk 0:01:10.8]} 31. Rxd4 {[%clk 0:00:31.9]} 31... Rxd4 {[%clk
0:01:10.8]} 32. Rxd4 {[%clk 0:00:32.4]} 32... Rxd4 {[%clk 0:01:11.1]} 33. Nxd4
{[%clk 0:00:32.1]} 33... a5 {[%clk 0:01:09]} 34. b3 {[%clk 0:00:29.7]} 34... Kf7
{[%clk 0:01:06.8]} 35. Kf2 {[%clk 0:00:27.5]} 35... Kf6 {[%clk 0:01:07]} 36. Ke3
{[%clk 0:00:24.4]} 36... Ke5 {[%clk 0:01:04.5]} 37. g4 {[%clk 0:00:21.7]} 37...
h6 {[%clk 0:00:58.5]} 38. h4 {[%clk 0:00:21.1]} 38... Kf6 {[%clk 0:00:42.7]} 39.
Kf4 {[%clk 0:00:17.9]} 39... Nd3+ {[%clk 0:00:41.5]} 40. Ke3 {[%clk 0:00:17.8]}
40... Nb4 {[%clk 0:00:36.8]} 41. Kf4 {[%clk 0:00:17.6]} 41... Nd5+ {[%clk
0:00:34.1]} 42. Ke4 {[%clk 0:00:17.9]} 42... Nc3+ {[%clk 0:00:29.7]} 43. Kf4
{[%clk 0:00:18.1]} 43... b5 {[%clk 0:00:26.7]} 44. g5+ {[%clk 0:00:17.8]} 44...
hxg5+ {[%clk 0:00:26.7]} 45. hxg5+ {[%clk 0:00:18.7]} 45... Kf7 {[%clk
0:00:27.1]} 46. Ke3 {[%clk 0:00:17.5]} 46... a4 {[%clk 0:00:23.6]} 47. bxa4
{[%clk 0:00:17.1]} 47... bxa4 {[%clk 0:00:24.5]} 48. Kd3 {[%clk 0:00:17.2]}
48... Nd5 {[%clk 0:00:23.3]} 49. Kc4 {[%clk 0:00:15.9]} 49... Nf4 {[%clk
0:00:19.4]} 50. Kb4 {[%clk 0:00:14.7]} 50... Nh3 {[%clk 0:00:19.3]} 51. g6+
{[%clk 0:00:11.1]} 51... Kf6 {[%clk 0:00:19.4]} 52. Kxa4 {[%clk 0:00:11]} 52...
Nf4 {[%clk 0:00:15.3]} 53. Kb4 {[%clk 0:00:10.1]} 53... Nd5+ {[%clk 0:00:15.4]}
54. Kc5 {[%clk 0:00:10.1]} 54... Ne3 {[%clk 0:00:14.7]} 55. Ne6 {[%clk
0:00:10.4]} 55... Nxf5 {[%clk 0:00:14.3]} 56. Nxg7 {[%clk 0:00:09.9]} 56... Nxg7
{[%clk 0:00:14.8]} 57. Kd5 {[%clk 0:00:10]} 57... Kxg6 {[%clk 0:00:15.7]}
1/2-1/2